[Event "11th LCC Super Blitz 2019"]
[Site "London"]
[Date "2019.12.08"]
[Round "9.7"]
[White "Stoyanov, Viktor"]
[Black "Tombolis, Christopher"]
[Result "1-0"]
[ECO "B31"]
[WhiteElo "2191"]
[BlackElo "1655"]
[Annotator "NA"]
[PlyCount "91"]
[EventDate "2019.12.08"]
[EventType "swiss"]
[EventCountry "ENG"]
[SourceTitle "playchess.com"]
[Source "ChessBase"]
[SourceQuality "1"]
[TimeControl "180+2"]

1. e4 {[%emt 0:00:00]} c5 {[%emt 0:00:00]} 2. Nf3 {[%emt 0:00:01]} Nc6 {[%emt 0:00:00]} 3. Bb5 {[%emt 0:00:02]} g6 {[%emt 0:00:00]} 4. O-O {[%emt 0:00:01]} Bg7 {[%emt 0:00:01]} 5. Nc3 {[%emt 0:00:04]} d6 {[%emt 0:00:04]} 6. Bxc6+ {[%emt 0:00:03]} bxc6 {[%emt 0:00:01]} 7. d3 {[%emt 0:00:01]} e5 {[%emt 0:00:08]} 8. Be3 {[%emt 0:00:08]} Nf6 {[%emt 0:00:05]} 9. h3 {[%emt 0:00:02]} Nd7 {[%emt 0:00:01]} 10. a3 {[%emt 0:00:03]} Nf8 {[%emt 0:00:25]} 11. Nd2 {[%emt 0:00:06]} Ba6 {[%emt 0:00:06]} 12. Nc4 {[%emt 0:00:01]} Bxc4 {[%emt 0:00:04]} 13. dxc4 {[%emt 0:00:02]} Ne6 {[%emt 0:00:02]} 14. Qd2 {[%emt 0:00:06]} O-O {[%emt 0:00:04]} 15. Rad1 {[%emt 0:00:02]} Nd4 {[%emt 0:00:02]} 16. Ne2 {[%emt 0:00:07]} Qb6 {[%emt 0:00:08]} 17. c3 {[%emt 0:00:03]} Nxe2+ 18. Qxe2 {[%emt 0:00:01]} Rfd8 {[%emt 0:00:27]} 19. b4 {[%emt 0:00:03]} Qa6 {[%emt 0:00:10]} 20. bxc5 {[%emt 0:00:01]} Qxa3 {[%emt 0:00:01]} 21. cxd6 {[%emt 0:00:05]} Rxd6 {[%emt 0:00:03]} 22. Rxd6 Qxd6 {[%emt 0:00:01]} 23. Rd1 {[%emt 0:00:10]} Qe6 {[%emt 0:00:01]} 24. c5 {[%emt 0:00:02]} Bf8 {[%emt 0:00:08]} 25. Qa6 {[%emt 0:00:08]} Qb3 {[%emt 0:00:26]} 26. Rd7 {[%emt 0:00:02]} Qb1+ {[%emt 0:00:07]} 27. Kh2 {[%emt 0:00:01]} Qxe4 {[%emt 0:00:02]} 28. Qb7 {[%emt 0:00:02]} Qf5 {[%emt 0:00:09]} 29. Rc7 {[%emt 0:00:08]} Rd8 {[%emt 0:00:16]} 30. Qxc6 {[%emt 0:00:02]} a5 {[%emt 0:00:08]} 31. g4 {[%emt 0:00:08]} Qd3 {[%emt 0:00:12]} 32. Qf6 {[%emt 0:00:35]} Qd5 {[%emt 0:00:15]} 33. Rxf7 {[%emt 0:00:06]} Qxf7 {[%emt 0:00:03]} 34. Qxd8 {[%emt 0:00:02]} a4 {[%emt 0:00:05]} 35. Qa8 {[%emt 0:00:01]} Qc4 {[%emt 0:00:15]} 36. c6 {[%emt 0:00:06]} Kg7 {[%emt 0:00:04]} 37. Qb7+ {[%emt 0:00:05]} Kf6 {[%emt 0:00:02]} 38. c7 {[%emt 0:00:04]} Bd6 {[%emt 0:00:07]} 39. c8=Q {[%emt 0:00:10]} e4+ {[%emt 0:00:02]} 40. Kg2 {[%emt 0:00:01]} Qe2 {[%emt 0:00:02]} 41. Qxe4 {[%emt 0:00:09]} Qd1 {[%emt 0:00:02]} 42. Bd4+ {[%emt 0:00:05]} Kg5 {[%emt 0:00:01]} 43. Be3+ {[%emt 0:00:04]} Kh4 {[%emt 0:00:02]} 44. g5+ {[%emt 0:00:02]} Bf4 45. Qxf4+ {[%emt 0:00:02]} Qg4+ {[%emt 0:00:03]} 46. Qcxg4# {[%emt 0:00:02]} 1-0

[Event "11th LCC Super Blitz 2019"]
[Site "London"]
[Date "2019.12.08"]
[Round "9.7"]
[White "Dhemrait, Jagdeep"]
[Black "Brass, Ezra"]
[Result "0-1"]
[ECO "B23"]
[WhiteElo "1834"]
[BlackElo "1628"]
[Annotator "NA"]
[PlyCount "52"]
[EventDate "2019.12.08"]
[EventType "swiss"]
[EventCountry "ENG"]
[SourceTitle "playchess.com"]
[Source "ChessBase"]
[SourceQuality "1"]
[TimeControl "180+2"]

1. e4 {[%emt 0:00:00]} c5 {[%emt 0:00:00]} 2. Nc3 {[%emt 0:00:00]} Nc6 {[%emt 0:00:00]} 3. f4 {[%emt 0:00:01]} g6 {[%emt 0:00:01]} 4. Nf3 {[%emt 0:00:01]} Bg7 {[%emt 0:00:01]} 5. Bb5 {[%emt 0:00:01]} e6 {[%emt 0:00:03]} 6. Bxc6 {[%emt 0:00:03]} dxc6 {[%emt 0:00:02]} 7. O-O {[%emt 0:00:02]} Ne7 {[%emt 0:00:04]} 8. d3 {[%emt 0:00:02]} b5 {[%emt 0:00:07]} 9. a4 {[%emt 0:00:09]} b4 {[%emt 0:00:02]} 10. Ne2 {[%emt 0:00:11]} Ba6 {[%emt 0:00:07]} 11. Nd2 {[%emt 0:00:14]} O-O {[%emt 0:00:39]} 12. Rb1 {[%emt 0:00:07]} Rb8 {[%emt 0:00:07]} 13. b3 {[%emt 0:00:02]} f5 {[%emt 0:00:17]} 14. Kh1 {[%emt 0:00:34]} fxe4 {[%emt 0:00:09]} 15. Nxe4 {[%emt 0:00:13]} Qd5 {[%emt 0:00:17]} 16. Qe1 {[%emt 0:00:36]} Nf5 {[%emt 0:00:08]} 17. Bb2 {[%emt 0:00:22]} Bxb2 {[%emt 0:00:29]} 18. Rxb2 {[%emt 0:00:01]} Nd4 {[%emt 0:00:09]} 19. Nd2 {[%emt 0:00:16]} Rf5 {[%emt 0:00:25]} 20. Ng3 {[%emt 0:00:07]} Rff8 {[%emt 0:00:08]} 21. Nge4 {[%emt 0:00:07]} Qh5 {[%emt 0:00:08]} 22. Qe3 {[%emt 0:00:14]} Rbd8 {[%emt 0:00:06]} 23. Nf3 {[%emt 0:00:11]} Qd5 {[%emt 0:00:05]} 24. Ne5 {[%emt 0:00:06]} Qxe5 {[%emt 0:00:06]} 25. Re1 {[%emt 0:00:05]} Qh5 {[%emt 0:00:02]} 26. Ng3 {[%emt 0:00:05]} Qd5 {[%emt 0:00:22]} 0-1

[Event "11th LCC Super Blitz 2019"]
[Site "London"]
[Date "2019.12.08"]
[Round "9.7"]
[White "Ismail, Mohammed Aayan"]
[Black "Royal, Shreyas"]
[Result "0-1"]
[ECO "E20"]
[WhiteElo "1641"]
[BlackElo "1941"]
[Annotator "NA"]
[PlyCount "64"]
[EventDate "2019.12.08"]
[EventType "swiss"]
[EventCountry "ENG"]
[SourceTitle "playchess.com"]
[Source "ChessBase"]
[SourceQuality "1"]
[TimeControl "180+2"]

1. d4 {[%emt 0:00:00]} d5 {[%emt 0:00:00]} 2. c4 {[%emt 0:00:00]} e6 {[%emt 0:00:00]} 3. g3 {[%emt 0:00:01]} Nf6 {[%emt 0:00:02]} 4. Nc3 {[%emt 0:00:01]} Bb4 {[%emt 0:00:03]} 5. cxd5 {[%emt 0:00:05]} exd5 {[%emt 0:00:01]} 6. Bg2 {[%emt 0:00:01]} O-O {[%emt 0:00:02]} 7. Nf3 {[%emt 0:00:01]} Nbd7 {[%emt 0:00:08]} 8. O-O {[%emt 0:00:02]} c6 {[%emt 0:00:01]} 9. a3 {[%emt 0:00:01]} Bxc3 {[%emt 0:00:01]} 10. bxc3 {[%emt 0:00:01]} Nb6 {[%emt 0:00:02]} 11. Ne5 {[%emt 0:00:10]} Bf5 {[%emt 0:00:07]} 12. Qb3 {[%emt 0:00:23]} Re8 {[%emt 0:00:13]} 13. a4 {[%emt 0:00:06]} Nfd7 {[%emt 0:00:10]} 14. a5 {[%emt 0:00:22]} Nxe5 {[%emt 0:00:01]} 15. axb6 {[%emt 0:00:18]} Nc4 {[%emt 0:00:01]} 16. bxa7 {[%emt 0:00:09]} Na5 {[%emt 0:00:01]} 17. Qb4 {[%emt 0:00:42]} Rxa7 {[%emt 0:00:02]} 18. Be3 {[%emt 0:00:04]} Ra8 {[%emt 0:00:04]} 19. Ra2 {[%emt 0:00:16]} Nc4 {[%emt 0:00:01]} 20. Rfa1 {[%emt 0:00:19]} Rxa2 {[%emt 0:00:02]} 21. Rxa2 {[%emt 0:00:01]} Nxe3 {[%emt 0:00:14]} 22. fxe3 {[%emt 0:00:01]} Qd7 {[%emt 0:00:16]} 23. Ra7 {[%emt 0:00:19]} Rb8 {[%emt 0:00:00]} 24. Qb6 {[%emt 0:00:06]} h6 {[%emt 0:00:05]} 25. Bf3 {[%emt 0:00:02]} Qe7 {[%emt 0:00:14]} 26. Kf2 {[%emt 0:00:03]} Re8 {[%emt 0:00:01]} 27. Qxb7 {[%emt 0:00:12]} Qxe3+ {[%emt 0:00:03]} 28. Kg2 {[%emt 0:00:01]} Qe6 {[%emt 0:00:12]} 29. Qb2 {[%emt 0:00:08]} Bh3+ {[%emt 0:00:01]} 30. Kf2 {[%emt 0:00:02]} Qe3+ {[%emt 0:00:01]} 31. Ke1 {[%emt 0:00:01]} Qxf3 {[%emt 0:00:03]} 32. Kd1 {[%emt 0:00:02]} Qf1+ {[%emt 0:00:03]} 0-1

[Event "11th LCC Super Blitz 2019"]
[Site "London"]
[Date "2019.12.08"]
[Round "9.8"]
[White "Balaji, Aaravamudhan"]
[Black "Sheikh, Anum"]
[Result "1-0"]
[ECO "A86"]
[WhiteElo "2120"]
[BlackElo "1560"]
[Annotator "NA"]
[PlyCount "99"]
[EventDate "2019.12.08"]
[EventType "swiss"]
[EventCountry "ENG"]
[SourceTitle "playchess.com"]
[Source "ChessBase"]
[SourceQuality "1"]
[TimeControl "180+2"]

1. d4 {[%emt 0:00:00]} f5 {[%emt 0:00:00]} 2. c4 {[%emt 0:00:00]} Nf6 {[%emt 0:00:00]} 3. g3 {[%emt 0:00:00]} d6 {[%emt 0:00:02]} 4. Bg2 {[%emt 0:00:00]} g6 {[%emt 0:00:01]} 5. Nh3 {[%emt 0:00:01]} Bg7 {[%emt 0:00:03]} 6. O-O {[%emt 0:00:02]} O-O {[%emt 0:00:02]} 7. Nc3 {[%emt 0:00:01]} Nbd7 {[%emt 0:00:06]} 8. f4 {[%emt 0:00:02]} e5 {[%emt 0:00:09]} 9. fxe5 {[%emt 0:00:18]} dxe5 {[%emt 0:00:02]} 10. Ng5 {[%emt 0:00:00]} Qe8 {[%emt 0:00:10]} 11. Nb5 {[%emt 0:00:05]} Rb8 {[%emt 0:01:05]} 12. Nxc7 {[%emt 0:00:21]} Qe7 {[%emt 0:00:01]} 13. Nge6 {[%emt 0:00:16]} Rf7 {[%emt 0:00:08]} 14. d5 {[%emt 0:00:16]} Ne8 {[%emt 0:00:19]} 15. Nxe8 {[%emt 0:00:43]} Qxe8 {[%emt 0:00:01]} 16. Nc7 {[%emt 0:00:05]} Qd8 {[%emt 0:00:12]} 17. d6 {[%emt 0:00:01]} Nf6 {[%emt 0:00:13]} 18. Bg5 {[%emt 0:00:10]} Rd7 {[%emt 0:00:21]} 19. c5 {[%emt 0:00:09]} Rxc7 {[%emt 0:00:09]} 20. dxc7 {[%emt 0:00:03]} Qxc7 {[%emt 0:00:00]} 21. Qd6 {[%emt 0:00:07]} Qxd6 22. cxd6 {[%emt 0:00:01]} Bd7 {[%emt 0:00:11]} 23. Rac1 {[%emt 0:00:03]} e4 {[%emt 0:00:06]} 24. Rc7 {[%emt 0:00:04]} Bc6 {[%emt 0:00:06]} 25. Bxf6 {[%emt 0:00:11]} Bxf6 {[%emt 0:00:01]} 26. d7 {[%emt 0:00:02]} Rd8 {[%emt 0:00:10]} 27. Rd1 {[%emt 0:00:15]} Kf7 {[%emt 0:00:01]} 28. Rc8 {[%emt 0:00:03]} Ke7 {[%emt 0:00:07]} 29. Rxd8 {[%emt 0:00:11]} Kxd8 {[%emt 0:00:01]} 30. e3 {[%emt 0:00:01]} Bxd7 {[%emt 0:00:01]} 31. Bf1 {[%emt 0:00:03]} Ke7 {[%emt 0:00:01]} 32. b3 {[%emt 0:00:05]} Bc6 {[%emt 0:00:02]} 33. Kf2 {[%emt 0:00:02]} Be5 {[%emt 0:00:05]} 34. b4 {[%emt 0:00:02]} a6 {[%emt 0:00:02]} 35. Rb1 {[%emt 0:00:06]} b5 {[%emt 0:00:04]} 36. Rc1 {[%emt 0:00:01]} Kd7 {[%emt 0:00:02]} 37. Be2 {[%emt 0:00:04]} Bb2 {[%emt 0:00:02]} 38. Rb1 {[%emt 0:00:02]} Bc3 {[%emt 0:00:01]} 39. g4 {[%emt 0:00:03]} Be5 {[%emt 0:00:03]} 40. gxf5 gxf5 {[%emt 0:00:01]} 41. h4 {[%emt 0:00:12]} Ke6 {[%emt 0:00:02]} 42. Rc1 {[%emt 0:00:00]} Bd5 {[%emt 0:00:02]} 43. Rc2 {[%emt 0:00:04]} Kd6 {[%emt 0:00:05]} 44. a3 {[%emt 0:00:02]} Bf7 {[%emt 0:00:02]} 45. Rc8 {[%emt 0:00:04]} Bg6 {[%emt 0:00:03]} 46. h5 {[%emt 0:00:01]} Bf7 {[%emt 0:00:02]} 47. Ra8 {[%emt 0:00:03]} Bd5 {[%emt 0:00:04]} 48. Rxa6+ {[%emt 0:00:01]} Kc7 {[%emt 0:00:01]} 49. Bxb5 {[%emt 0:00:07]} Bb7 {[%emt 0:00:02]} 50. Rh6 {[%emt 0:00:01]} 1-0

[Event "11th LCC Super Blitz 2019"]
[Site "London"]
[Date "2019.12.08"]
[Round "9.8"]
[White "Bird, Joel"]
[Black "Bergner, Matthias"]
[Result "1-0"]
[ECO "B06"]
[WhiteElo "2009"]
[BlackElo "1632"]
[Annotator "NA"]
[PlyCount "38"]
[EventDate "2019.12.08"]
[EventType "swiss"]
[EventCountry "ENG"]
[SourceTitle "playchess.com"]
[Source "ChessBase"]
[SourceQuality "1"]
[TimeControl "180+2"]

1. e4 {[%emt 0:00:00]} g6 {[%emt 0:00:00]} 2. d4 {[%emt 0:00:00]} Bg7 {[%emt 0:00:01]} 3. Nc3 {[%emt 0:00:02]} e6 {[%emt 0:00:02]} 4. Be3 {[%emt 0:00:03]} Ne7 {[%emt 0:00:01]} 5. Nf3 {[%emt 0:00:05]} O-O {[%emt 0:00:03]} 6. Qd2 {[%emt 0:00:11]} b6 7. Bh6 {[%emt 0:00:00]} Bb7 {[%emt 0:00:04]} 8. Bxg7 {[%emt 0:00:03]} Kxg7 {[%emt 0:00:02]} 9. Bd3 {[%emt 0:00:01]} f5 {[%emt 0:00:08]} 10. O-O-O {[%emt 0:00:09]} Nbc6 {[%emt 0:00:07]} 11. h4 {[%emt 0:00:17]} Ng8 {[%emt 0:00:18]} 12. h5 {[%emt 0:00:16]} Nce7 {[%emt 0:00:28]} 13. Kb1 {[%emt 0:00:09]} Qe8 {[%emt 0:00:29]} 14. Ng5 {[%emt 0:00:12]} h6 {[%emt 0:00:13]} 15. Nf3 {[%emt 0:00:27]} g5 {[%emt 0:00:06]} 16. exf5 {[%emt 0:00:10]} Nxf5 {[%emt 0:00:04]} 17. Rde1 {[%emt 0:00:03]} Bxf3 {[%emt 0:00:32]} 18. gxf3 {[%emt 0:00:02]} Qe7 {[%emt 0:00:25]} 19. f4 {[%emt 0:00:10]} Kh8 {[%emt 0:00:34]} 1-0

[Event "11th LCC Super Blitz 2019"]
[Site "London"]
[Date "2019.12.08"]
[Round "9.8"]
[White "John, Joshua"]
[Black "Marusenko, Petr"]
[Result "1-0"]
[ECO "D02"]
[WhiteElo "1694"]
[BlackElo "2085"]
[Annotator "NA"]
[PlyCount "32"]
[EventDate "2019.12.08"]
[EventType "swiss"]
[EventCountry "ENG"]
[SourceTitle "playchess.com"]
[Source "ChessBase"]
[SourceQuality "1"]
[TimeControl "180+2"]

1. d4 {[%emt 0:00:00]} d5 {[%emt 0:00:01]} 2. Nf3 {[%emt 0:00:01]} Nf6 {[%emt 0:00:01]} 3. c4 {[%emt 0:00:01]} c6 {[%emt 0:00:01]} 4. Nc3 {[%emt 0:00:01]} Bf5 {[%emt 0:00:01]} 5. Bf4 {[%emt 0:00:10]} e6 {[%emt 0:00:03]} 6. e3 {[%emt 0:00:01]} h6 {[%emt 0:00:01]} 7. Bd3 {[%emt 0:00:03]} Bxd3 {[%emt 0:00:04]} 8. Qxd3 {[%emt 0:00:02]} Nbd7 {[%emt 0:00:04]} 9. O-O {[%emt 0:00:03]} Be7 {[%emt 0:00:06]} 10. cxd5 {[%emt 0:00:08]} exd5 {[%emt 0:00:06]} 11. a3 {[%emt 0:00:09]} Nh5 {[%emt 0:00:02]} 12. Bg3 {[%emt 0:00:01]} Nxg3 {[%emt 0:00:02]} 13. hxg3 {[%emt 0:00:02]} O-O {[%emt 0:00:03]} 14. b4 {[%emt 0:00:02]} a6 {[%emt 0:00:10]} 15. Na4 {[%emt 0:00:25]} Bd6 {[%emt 0:00:28]} 16. Rfc1 {[%emt 0:00:06]} Re8 {[%emt 0:00:04]} 1-0

[Event "11th LCC Super Blitz 2019"]
[Site "London"]
[Date "2019.12.08"]
[Round "9.9"]
[White "Young, Daniel J"]
[Black "Arapalea, Daniel-Ionel"]
[Result "0-1"]
[ECO "A30"]
[WhiteElo "1947"]
[BlackElo "1840"]
[Annotator "NA"]
[PlyCount "52"]
[EventDate "2019.12.08"]
[EventType "swiss"]
[EventCountry "ENG"]
[SourceTitle "playchess.com"]
[Source "ChessBase"]
[SourceQuality "1"]
[TimeControl "180+2"]

1. Nf3 {[%emt 0:00:00]} c5 {[%emt 0:00:00]} 2. c4 {[%emt 0:00:01]} Nc6 {[%emt 0:00:01]} 3. Nc3 {[%emt 0:00:01]} b6 {[%emt 0:00:01]} 4. g3 {[%emt 0:00:02]} Bb7 {[%emt 0:00:00]} 5. Bg2 {[%emt 0:00:00]} g6 {[%emt 0:00:01]} 6. O-O {[%emt 0:00:02]} Bg7 {[%emt 0:00:01]} 7. e3 {[%emt 0:00:07]} Nf6 {[%emt 0:00:03]} 8. d4 {[%emt 0:00:03]} cxd4 {[%emt 0:00:03]} 9. exd4 {[%emt 0:00:06]} O-O {[%emt 0:00:02]} 10. d5 {[%emt 0:00:01]} Na5 {[%emt 0:00:17]} 11. Qd3 {[%emt 0:00:12]} Ba6 {[%emt 0:00:05]} 12. b3 {[%emt 0:00:01]} Nb7 {[%emt 0:00:01]} 13. Ba3 {[%emt 0:00:18]} d6 {[%emt 0:00:03]} 14. Nd4 {[%emt 0:00:04]} Nc5 {[%emt 0:00:08]} 15. Bxc5 {[%emt 0:00:17]} bxc5 {[%emt 0:00:04]} 16. Nc6 {[%emt 0:00:02]} Qc7 {[%emt 0:00:10]} 17. Rfe1 {[%emt 0:00:01]} Rae8 {[%emt 0:00:03]} 18. a4 {[%emt 0:00:07]} Ng4 {[%emt 0:00:05]} 19. Ra2 {[%emt 0:00:14]} Ne5 {[%emt 0:00:02]} 20. Nxe5 {[%emt 0:00:12]} Bxe5 {[%emt 0:00:05]} 21. Nb5 {[%emt 0:00:09]} Qd7 {[%emt 0:00:09]} 22. f4 {[%emt 0:00:05]} Bg7 {[%emt 0:00:02]} 23. Rae2 {[%emt 0:00:01]} Bc8 {[%emt 0:00:03]} 24. Qd2 {[%emt 0:00:36]} a6 {[%emt 0:00:05]} 25. Nc3 {[%emt 0:00:02]} Qb7 {[%emt 0:00:02]} 26. Qd1 {[%emt 0:00:10]} Bxc3 {[%emt 0:00:05]} 0-1

[Event "11th LCC Super Blitz 2019"]
[Site "London"]
[Date "2019.12.08"]
[Round "9.9"]
[White "Rahman, Asad"]
[Black "Rushbrooke, Remy"]
[Result "1-0"]
[ECO "C55"]
[WhiteElo "1923"]
[BlackElo "1877"]
[Annotator "NA"]
[PlyCount "75"]
[EventDate "2019.12.08"]
[EventType "swiss"]
[EventCountry "ENG"]
[SourceTitle "playchess.com"]
[Source "ChessBase"]
[SourceQuality "1"]
[TimeControl "180+2"]

1. e4 {[%emt 0:00:00]} e5 {[%emt 0:00:00]} 2. Nf3 {[%emt 0:00:00]} Nf6 {[%emt 0:00:00]} 3. Nc3 {[%emt 0:00:02]} Nc6 {[%emt 0:00:01]} 4. Bc4 {[%emt 0:00:04]} Nxe4 {[%emt 0:00:03]} 5. Bxf7+ {[%emt 0:00:08]} Kxf7 {[%emt 0:00:01]} 6. Nxe4 {[%emt 0:00:01]} d5 {[%emt 0:00:02]} 7. Neg5+ {[%emt 0:00:18]} Kg8 {[%emt 0:00:01]} 8. d4 {[%emt 0:00:05]} e4 {[%emt 0:00:09]} 9. Ne5 {[%emt 0:00:02]} Nxe5 {[%emt 0:00:06]} 10. dxe5 {[%emt 0:00:01]} h6 {[%emt 0:00:28]} 11. Nh3 {[%emt 0:00:01]} Be6 {[%emt 0:00:24]} 12. Nf4 {[%emt 0:00:03]} Qe8 {[%emt 0:00:11]} 13. h4 {[%emt 0:00:26]} c6 {[%emt 0:00:09]} 14. h5 {[%emt 0:00:02]} Bf7 {[%emt 0:00:12]} 15. Be3 {[%emt 0:00:12]} Qxe5 {[%emt 0:00:04]} 16. g3 {[%emt 0:00:16]} c5 {[%emt 0:00:09]} 17. Qg4 {[%emt 0:00:21]} d4 {[%emt 0:00:12]} 18. Bc1 {[%emt 0:00:05]} e3 {[%emt 0:00:19]} 19. O-O {[%emt 0:00:21]} exf2+ {[%emt 0:00:14]} 20. Rxf2 {[%emt 0:00:03]} Re8 {[%emt 0:00:05]} 21. Bd2 {[%emt 0:00:16]} Be6 {[%emt 0:00:19]} 22. Qg6 {[%emt 0:00:16]} Bf5 {[%emt 0:00:02]} 23. Nd3 {[%emt 0:00:24]} Bxg6 {[%emt 0:00:05]} 24. Nxe5 {[%emt 0:00:01]} Bxh5 {[%emt 0:00:06]} 25. Nd7 {[%emt 0:00:02]} Bd6 {[%emt 0:00:04]} 26. Bf4 {[%emt 0:00:04]} Bxf4 {[%emt 0:00:02]} 27. Rxf4 {[%emt 0:00:01]} Kh7 {[%emt 0:00:06]} 28. Nxc5 {[%emt 0:00:02]} Re2 {[%emt 0:00:02]} 29. Raf1 {[%emt 0:00:13]} Rc8 {[%emt 0:00:02]} 30. Nb3 {[%emt 0:00:05]} Rcxc2 {[%emt 0:00:05]} 31. R1f2 {[%emt 0:00:01]} Rxf2 {[%emt 0:00:03]} 32. Rxf2 {[%emt 0:00:00]} Rxf2 {[%emt 0:00:01]} 33. Kxf2 {[%emt 0:00:01]} d3 {[%emt 0:00:01]} 34. Ke3 {[%emt 0:00:01]} Bg6 {[%emt 0:00:00]} 35. Nc1 {[%emt 0:00:01]} b6 {[%emt 0:00:02]} 36. Nxd3 Bxd3 {[%emt 0:00:01]} 37. Kxd3 {[%emt 0:00:04]} Kg6 {[%emt 0:00:01]} 38. Ke4 {[%emt 0:00:00]} 1-0

[Event "11th LCC Super Blitz 2019"]
[Site "London"]
[Date "2019.12.08"]
[Round "9.9"]
[White "Vikas Narayan S P"]
[Black "Nettleton, Charlie B"]
[Result "0-1"]
[ECO "C40"]
[WhiteElo "1026"]
[BlackElo "2021"]
[Annotator "NA"]
[PlyCount "38"]
[EventDate "2019.12.08"]
[EventType "swiss"]
[EventCountry "ENG"]
[SourceTitle "playchess.com"]
[Source "ChessBase"]
[SourceQuality "1"]
[TimeControl "180+2"]

1. e4 {[%emt 0:02:19]} e5 {[%emt 0:00:02]} 2. Nf3 {[%emt 0:00:01]} f5 {[%emt 0:00:02]} 3. d3 Nc6 {[%emt 0:00:01]} 4. Nc3 {[%emt 0:00:03]} Nf6 5. Bg5 {[%emt 0:00:02]} Bb4 6. exf5 {[%emt 0:00:05]} d5 {[%emt 0:00:01]} 7. a3 {[%emt 0:00:05]} Bxc3+ {[%emt 0:00:02]} 8. bxc3 {[%emt 0:00:02]} Bxf5 {[%emt 0:00:03]} 9. d4 {[%emt 0:00:11]} exd4 {[%emt 0:00:05]} 10. cxd4 {[%emt 0:00:03]} O-O {[%emt 0:00:04]} 11. Be2 {[%emt 0:00:04]} h6 {[%emt 0:00:03]} 12. Bh4 {[%emt 0:00:03]} Qe8 {[%emt 0:00:04]} 13. Bxf6 {[%emt 0:00:05]} Rxf6 {[%emt 0:00:02]} 14. O-O {[%emt 0:00:04]} Be4 {[%emt 0:00:04]} 15. Bb5 {[%emt 0:00:03]} Bxf3 {[%emt 0:00:17]} 16. gxf3 {[%emt 0:00:06]} Qh5 {[%emt 0:00:07]} 17. f4 {[%emt 0:00:13]} Qh3 {[%emt 0:00:15]} 18. Kh1 {[%emt 0:00:16]} Nxd4 {[%emt 0:00:12]} 19. Qxd4 {[%emt 0:00:08]} Qf3+ {[%emt 0:00:18]} 0-1

[Event "11th LCC Super Blitz 2019"]
[Site "London"]
[Date "2019.12.08"]
[Round "9.10"]
[White "Joslin, Tim"]
[Black "Kirupakaran, Vishnu"]
[Result "0-1"]
[ECO "B22"]
[WhiteElo "1822"]
[BlackElo "1871"]
[Annotator "NA"]
[PlyCount "64"]
[EventDate "2019.12.08"]
[EventType "swiss"]
[EventCountry "ENG"]
[SourceTitle "playchess.com"]
[Source "ChessBase"]
[SourceQuality "1"]
[TimeControl "180+2"]

1. e4 {[%emt 0:00:00]} c5 {[%emt 0:00:00]} 2. c3 {[%emt 0:00:00]} Nf6 {[%emt 0:00:01]} 3. e5 {[%emt 0:00:00]} Nd5 {[%emt 0:00:01]} 4. d4 {[%emt 0:00:01]} cxd4 {[%emt 0:00:00]} 5. Nf3 {[%emt 0:00:01]} Nc6 {[%emt 0:00:01]} 6. Bc4 {[%emt 0:00:04]} e6 {[%emt 0:00:01]} 7. O-O {[%emt 0:00:08]} Nb6 {[%emt 0:00:08]} 8. Bb3 {[%emt 0:00:01]} dxc3 {[%emt 0:00:01]} 9. Nxc3 {[%emt 0:00:01]} d5 {[%emt 0:00:02]} 10. exd6 {[%emt 0:00:09]} Bxd6 {[%emt 0:00:11]} 11. Qe2 {[%emt 0:00:10]} O-O {[%emt 0:00:02]} 12. Bc2 {[%emt 0:00:09]} h6 {[%emt 0:00:11]} 13. Rd1 {[%emt 0:00:19]} Qe7 {[%emt 0:00:02]} 14. Ne4 {[%emt 0:00:08]} Bc7 {[%emt 0:00:05]} 15. a3 {[%emt 0:00:13]} Nd5 {[%emt 0:00:07]} 16. Qd3 {[%emt 0:00:07]} f5 {[%emt 0:00:41]} 17. Ng3 {[%emt 0:00:04]} Nf6 {[%emt 0:00:17]} 18. Re1 {[%emt 0:00:08]} Rd8 {[%emt 0:00:07]} 19. Qb3 {[%emt 0:00:24]} Qf7 {[%emt 0:00:04]} 20. Bd2 {[%emt 0:00:18]} Nd4 {[%emt 0:00:34]} 21. Nxd4 {[%emt 0:00:03]} Rxd4 22. Bc3 {[%emt 0:00:03]} Rd8 {[%emt 0:00:21]} 23. Rad1 {[%emt 0:00:05]} Nd5 {[%emt 0:00:12]} 24. Be5 {[%emt 0:00:16]} Bxe5 {[%emt 0:00:31]} 25. Rxe5 {[%emt 0:00:01]} b6 {[%emt 0:00:06]} 26. Nxf5 {[%emt 0:00:06]} exf5 {[%emt 0:00:00]} 27. Rexd5 {[%emt 0:00:03]} Rxd5 {[%emt 0:00:03]} 28. Rxd5 {[%emt 0:00:04]} Bb7 {[%emt 0:00:02]} 29. Rxf5 {[%emt 0:00:04]} Qxb3 {[%emt 0:00:03]} 30. Bxb3+ {[%emt 0:00:01]} Kh7 {[%emt 0:00:01]} 31. Rf7 {[%emt 0:00:06]} Re8 {[%emt 0:00:02]} 32. Kf1 {[%emt 0:00:08]} Ba6+ {[%emt 0:00:00] Ke1} 0-1